fUSD/lending_fUSD_20241108
["ID","MTS","AMOUNT","RATE_DAILY","PERIOD"]
[341637363,1731051032673,-267.19,0.0002699,2]
[341637365,1731051032682,-267.19,0.0002699,2]
[341637367,1731051032691,-267.19,0.0002699,2]
[341637368,1731051032700,-267.19,0.0002699,2]
[341637369,1731051032709,-267.19,0.0002699,2]
[341637370,1731051032719,-267.19,0.0002699,2]
[341637371,1731051032730,-267.19,0.0002699,2]
[341637372,1731051032739,-267.19,0.0002699,2]
[341637373,1731051032748,-267.19,0.0002699,2]
[341637374,1731051032757,-267.19,0.0002699,2]
[341637375,1731051032767,-267.19,0.0002699,2]
[341637376,1731051032776,-267.19,0.0002699,2]
[341637377,1731051032786,-267.19,0.0002699,2]
[341637378,1731051032795,-267.19,0.0002699,2]
[341637379,1731051032804,-267.19,0.0002699,2]
[341637380,1731051032814,-267.19,0.0002699,2]
[341637381,1731051032823,-267.19,0.0002699,2]
[341637382,1731051032832,-267.19,0.0002699,2]
[341637383,1731051032841,-267.19,0.0002699,2]
[341637384,1731051032850,-267.19,0.0002699,2]
[341637385,1731051032860,-267.19,0.0002699,2]
[341637386,1731051032870,-267.19,0.0002699,2]
[341637387,1731051032880,-267.19,0.0002699,2]
[341637388,1731051032889,-267.19,0.0002699,2]
[341637389,1731051032898,-267.19,0.0002699,2]
[341637390,1731051032907,-267.19,0.0002699,2]
[341637391,1731051032916,-267.19,0.0002699,2]
[341637392,1731051032925,-267.19,0.0002699,2]
[341637393,1731051032935,-267.19,0.0002699,2]
[341637394,1731051032944,-267.19,0.0002699,2]
[341637395,1731051032953,-267.19,0.0002699,2]
[341637396,1731051032962,-267.19,0.0002699,2]
[341637397,1731051032976,-267.19,0.0002699,2]
[341637398,1731051032984,-267.19,0.0002699,2]
[341637399,1731051032993,-267.19,0.0002699,2]
[341637400,1731051033002,-267.19,0.0002699,2]
[341637401,1731051033011,-267.19,0.0002699,2]
[341637402,1731051033020,-267.19,0.0002699,2]
[341637403,1731051033029,-267.19,0.0002699,2]
[341637404,1731051033039,-151.0,0.00026999,2]
[341637405,1731051033048,-15137.40622736,0.00027,4]
[341637406,1731051033382,-5804.59803058,0.00027,4]
[341637407,1731051033393,-415.368,0.00027,4]
[341637408,1731051033405,-2003.00884502,0.00027,4]
[341637409,1731051033416,-4187.27631572,0.00027,4]
[341637410,1731051033428,-720.46805479,0.00027,4]
[341637411,1731051033439,-27637.3545605,0.00027,4]
[341637412,1731051033451,-8008.51950183,0.00027,4]
[341637413,1731051033463,-37113.70490508,0.00027,4]
[341637414,1731051033477,-500.0,0.00027,4]
[341637415,1731051033493,-13241.69909639,0.00027,4]
[341637416,1731051033512,-3770.0,0.00027,4]
[341637418,1731051037631,-500.0,0.000269,2]
[341637420,1731051037641,-500.0,0.00026999,2]
[341637421,1731051037651,-500.0,0.00026999,2]
[341637422,1731051037661,-500.0,0.00026999,2]
[341637423,1731051037671,-326.45616188,0.00026999,2]
[341637424,1731051037680,-500.0,0.00026999,2]
[341637425,1731051037690,-10966.20402609,0.00027,4]
[341637426,1731051037702,-5214.21369209,0.00027,4]
[341637427,1731051037889,-4833.0625447,0.00027,4]
[341637428,1731051037900,-17170.04,0.00027,4]
[341637429,1731051037964,-1547.61,0.00027,4]
[341637430,1731051037976,-7002.01490192,0.00027,4]
[341637431,1731051037987,-20965.94559944,0.00027,4]
[341637439,1731051039516,-500.0,0.00026499,2]
[341637440,1731051039526,-500.0,0.00026499,2]
[341637441,1731051039535,-160.13407766,0.00026499,2]
[341637442,1731051039544,-500.0,0.00026499,2]
[341637443,1731051039554,-50575.59207414,0.00027,4]
[341637444,1731051039577,-219.5,0.00026499,2]
[341637445,1731051039587,-3248.85000355,0.00027,4]
[341637446,1731051039742,-681.26488617,0.00027,4]
[341637447,1731051039754,-532.20072611,0.00027,4]
[341637448,1731051039765,-253.44497898,0.00027,4]
[341637449,1731051039776,-556.86577081,0.00027,4]
[341637450,1731051039788,-384.644286,0.00027,4]
[341637451,1731051039804,-381.35844663,0.00027,4]
[341637452,1731051039815,-369.05211886,0.00027,4]
[341637453,1731051039827,-312.3160075,0.00027,4]
[341637476,1731051042752,-1118.235,0.00027,4]
[341637477,1731051042764,-475.9791063,0.00027,4]
[341637478,1731051042790,-3005.76019017,0.00027,4]
[341637479,1731051042914,-6040.0,0.00027,4]
[341637480,1731051042953,-778.84,0.00027,4]
[341637481,1731051042996,-828.6711612,0.00027,4]
[341637482,1731051043007,-1968.40098272,0.00027,4]
[341637483,1731051043018,-384839.43400677,0.00027,4]
[341637484,1731051043034,-870.1418419,0.00027,4]
[341637485,1731051043045,-627.59413878,0.00027,4]
[341637486,1731051043063,-398.07436933,0.00027,4]
[341637487,1731051043099,-2337.72239091,0.00027,4]
[341637499,1731051045611,-250.0,0.00026798,2]
[341637500,1731051045623,-19.27657242,0.00027,4]
[341637501,1731051045647,-1482.09636,0.00027,4]
[341637508,1731051046036,-1016.69680239,0.00027,4]
[341637510,1731051046048,-1897.778079,0.00027,4]
[341637513,1731051046059,-9416.77468018,0.00027,4]
[341637515,1731051046070,-22784.7531992,0.00027,4]
[341637517,1731051046082,-273.66002256,0.00027,4]
[341637529,1731051135358,160.68,0.00015342,2]
[341637533,1731051972409,160.05,0.00015342,2]
[341637535,1731052048167,-347.09,0.00023207,2]
[341637536,1731052048187,-749.0,0.000233,2]
[341637537,1731052048211,-779.99248352,0.00024629,2]
[341637538,1731052053100,-1117.86142379,0.00024629,2]
[341637539,1731052147090,-200.0,0.00023,2]
[341637540,1731052147114,-1419.44609269,0.00024629,2]
[341637541,1731052147138,-3317.3,0.00025025,2]
[341637542,1731052147161,-1000.0,0.00025043,2]
[341637543,1731052147184,-250.0,0.00025059,2]
[341637544,1731052147208,-200.0,0.00025068,2]
[341637545,1731052147229,-277.89,0.00025111,2]
[341637546,1731052147251,-1575.48,0.00025111,2]
[341637547,1731052147274,-23752.19,0.00025117,2]
[341637548,1731052147297,-250.0,0.00025126,2]
[341637549,1731052147321,-150.99,0.00025137,2]
[341637550,1731052147343,-1734.38,0.00025137,2]
[341637551,1731052147365,-2471.86,0.00025137,2]
[341637554,1731052231925,-180.38,0.00025219,120]
[341637555,1731052231934,-205.48,0.0002526,2]
[341637556,1731052231944,-412.4,0.00025263,120]
[341637557,1731052231953,-300.0,0.00025278,2]
[341637558,1731052231962,-4417.29103645,0.00025279,2]
[341637559,1731052231973,-1677.79485259,0.00025279,2]
[341637560,1731052231984,-1247.07693683,0.00025279,2]
[341637561,1731052231999,-991.45717413,0.00025279,2]
[341637562,1731052232008,-181.68,0.00025287,30]
[341637563,1731052232017,-280.0,0.000253,10]
[341637564,1731052232026,-381.62950253,0.00025412,2]
[341637565,1731052232037,-11.33953621,0.00025412,2]
[341637566,1731052232046,-414.98849046,0.00025421,2]
[341637567,1731052232058,-2902.31150954,0.00025421,2]
[341637568,1731052232067,-347.09,0.00025471,2]
[341637569,1731052232076,-155.38,0.00025712,2]
[341637570,1731052232085,-163.8,0.00025712,2]
[341637571,1731052232094,-392.96903874,0.0002572,2]
[341637572,1731052232103,-155.38,0.00025726,2]
[341637573,1731052232112,-155.38,0.00025739,2]
[341637574,1731052232124,-155.38,0.00025753,2]
[341637575,1731052232133,-155.38,0.00025766,2]
[341637576,1731052232142,-155.38,0.0002578,2]
[341637577,1731052232151,-155.38,0.00025793,2]
[341637579,1731052232160,-155.38,0.00025807,2]
[341637581,1731052232169,-3317.3,0.00025817,2]
[341637583,1731052232178,-155.38,0.0002582,2]
[341637585,1731052232187,-155.38,0.00025834,2]
[341637586,1731052232196,-155.38,0.00025847,2]
[341637587,1731052232206,-392.96903874,0.00025857,2]
[341637588,1731052232216,-155.38,0.00025861,2]
[341637589,1731052232226,-1913.085,0.00025874,2]
[341637590,1731052232236,-155.38,0.00025874,2]
[341637591,1731052232245,-155.38,0.00025888,2]
[341637592,1731052232254,-155.38,0.00025902,2]
[341637593,1731052232263,-155.38,0.00025915,2]
[341637594,1731052232271,-155.38,0.00025929,2]
[341637595,1731052232280,-155.38,0.00025942,2]
[341637596,1731052232289,-155.38,0.00025956,2]
[341637597,1731052232298,-155.38,0.00025969,2]
[341637598,1731052232308,-200.0,0.000261,9]
[341637600,1731052232317,-500.0,0.000262,9]
[341637601,1731052232326,-3317.3,0.00026212,2]
[341637602,1731052232335,-392.96903874,0.00026248,2]
[341637603,1731052232344,-700.0,0.000263,9]
[341637604,1731052232353,-1000.0,0.000264,9]
[341637605,1731052232362,-392.96903874,0.00026405,2]
[341637606,1731052232374,-1200.0,0.000265,9]
[341637607,1731052232383,-243.29,0.00026544,120]
[341637608,1731052232392,-200.0,0.000266,9]
[341637609,1731052232401,-3317.3,0.00026608,2]
[341637610,1731052232410,-392.96903875,0.00026672,2]
[341637611,1731052232420,-200.0,0.000267,9]
[341637612,1731052232429,-2689.8522,0.000267,2]
[341637613,1731052232438,-1787.85372699,0.0002673,2]
[341637614,1731052232447,-2607.0,0.0002673,2]
[341637615,1731052232457,-2000.0,0.0002673,2]
[341637616,1731052232466,-190.00936793,0.00026799,2]
[341637617,1731052232475,-500.0,0.00026799,2]
[341637618,1731052232484,-479.9987029,0.00026799,2]
[341637619,1731052232493,-27358.60102245,0.000268,2]
[341637620,1731052232509,-2165.11307755,0.000268,2]
[341637621,1731052232519,-589.5519553,0.000268,2]
[341637622,1731052232528,-500.0,0.000268,2]
[341637623,1731052232537,-2500.0,0.000268,2]
[341637624,1731052232547,-306.78411101,0.000268,2]
[341637625,1731052232556,-200.0,0.000268,9]
[341637626,1731052232565,-152.0,0.00026803,3]
[341637627,1731052232574,-306.78411099,0.00026811,2]
[341637628,1731052232583,-4638.0757,0.00026821,2]
[341637629,1731052232592,-2479.1531,0.00026821,2]
[341637630,1731052232601,-306.78411099,0.00026822,2]
[341637631,1731052232611,-306.78411099,0.00026833,2]
[341637632,1731052232620,-306.78411099,0.00026844,2]
[341637633,1731052232629,-306.78411099,0.00026856,2]
[341637634,1731052232639,-306.78411099,0.00026867,2]
[341637635,1731052232648,-160.93465651,0.00026873,2]
[341637636,1731052232657,-306.78411099,0.00026878,2]
[341637637,1731052232667,-5800.0,0.00026883,2]
[341637638,1731052232676,-306.78411099,0.00026889,2]
[341637639,1731052232687,-500.0,0.00026891,2]
[341637640,1731052232697,-5800.0,0.00026892,2]
[341637641,1731052232706,-500.0,0.00026899,2]
[341637642,1731052232716,-427.13867886,0.00026899,2]
[341637643,1731052232727,-500.0,0.00026899,2]
[341637644,1731052232740,-500.0,0.00026899,2]
[341637645,1731052232749,-181.99734622,0.000269,2]
[341637646,1731052232759,-1618.3259,0.000269,2]
[341637647,1731052232768,-247.17339847,0.000269,3]
[341637648,1731052233265,-1673.45409128,0.000269,3]
[341637649,1731052233277,-914.51995081,0.000269,3]
[341637650,1731052233287,-287.7992,0.000269,2]
[341637651,1731052233296,-45045.72907752,0.000269,2]
[341637652,1731052233308,-595.5625,0.000269,2]
[341637653,1731052233318,-251.03914311,0.000269,2]
[341637654,1731052233329,-633.73690018,0.000269,2]
[341637655,1731052237828,-18454.35638557,0.000269,2]
[341637656,1731052237840,-3686.84918448,0.000269,2]
[341637657,1731052237851,-685.85215512,0.000269,2]
[341637658,1731052237861,-605.38897764,0.000269,2]
[341637659,1731052237967,-5012.498,0.000269,2]
[341637660,1731052237979,-3649.93045815,0.000269,2]
[341637661,1731052237990,-394.95774352,0.000269,2]
[341637662,1731052238152,-208.45360909,0.000269,2]
[341637663,1731052238210,-52548.06356562,0.000269,2]
[341637664,1731052238220,-14635.4185,0.000269,2]
[341637665,1731052238229,-5824.2315,0.000269,2]
[341637666,1731052238239,-175.61202876,0.000269,2]
[341637667,1731052238248,-254.1445,0.000269,2]
[341637668,1731052238257,-3460.55901245,0.000269,2]
[341637670,1731052238266,-155.45469238,0.000269,2]
[341637671,1731052238276,-5800.0,0.000269,2]
[341637672,1731052238285,-500.0,0.000269,2]
[341637673,1731052238295,-200.0,0.000269,9]
[341637674,1731052238304,-306.78411099,0.000269,2]
[341637675,1731052238313,-263.6391737,0.000269,2]
[341637676,1731052238322,-1439.08942701,0.000269,2]
[341637677,1731052238331,-563654.95495698,0.00026922,2]
[341637678,1731052238341,-200.0,0.00026925,2]
[341637679,1731052238350,-200.0,0.00026927,2]
[341637680,1731052238360,-167122.42664128,0.00026928,2]
[341637681,1731052238370,-13791.21315271,0.00026931,2]
[341637682,1731052238381,-167122.42664128,0.00026936,2]
[341637683,1731052238390,-200.0,0.00026937,2]
[341637684,1731052238400,-200.0,0.0002694,2]
[341637685,1731052238409,-13791.21315271,0.0002694,2]
[341637686,1731052238418,-13791.21315271,0.00026943,2]
[341637687,1731052238427,-19579.54251297,0.00026943,2]
[341637688,1731052238437,-13791.21315271,0.00026944,2]
[341637689,1731052238446,-200.0,0.00026944,2]
[341637690,1731052238456,-19579.54251297,0.00026944,2]
[341637691,1731052238465,-39582.42967021,0.00026949,2]
[341637706,1731052239842,-782.25034141,0.000269,2]
[341637708,1731052239851,-18.74965859,0.00026949,2]
[341637717,1731052239930,-36519.52417196,0.00026949,2]
[341637719,1731052239942,-920.55026473,0.00026949,2]
[341637721,1731052239953,-616.775001,0.00026949,2]
[341637725,1731052239983,-3049.43456227,0.00026949,2]
[341637726,1731052240040,-95765.9040804,0.00026949,2]
[341637727,1731052240051,-361.40652576,0.00026949,2]
[341637730,1731052242794,-17317.94466339,0.00026949,2]
[341637731,1731052242806,-4881.98383427,0.00026949,2]
[341637732,1731052242847,-310.27095668,0.00026949,2]
[341637733,1731052243021,-3828.78272152,0.00026949,2]
[341637734,1731052243033,-400.56927193,0.00026949,2]
[341637742,1731052243965,-50153.50804096,0.00026949,2]
[341637743,1731052243979,-75117.99924,0.00026949,2]
[341637746,1731052245784,-250.0,0.00026515,2]
[341637747,1731052245797,-1654.34785718,0.00026949,2]
[341637748,1731052245960,-3969.42450757,0.00026949,2]
[341637749,1731052245972,-38128.65245416,0.00026949,2]
[341637750,1731052246117,-760.86185035,0.00026949,2]
[341637751,1731052262611,200.0,0.00023,2]
[341637752,1731052567292,155.39,0.00015342,2]
[341637822,1731053150098,155.44,0.00015342,2]
[341637868,1731053250116,-200.0,0.00023,2]
[341637869,1731053250138,-368.66,0.00023161,2]
[341637870,1731053250160,-152.39,0.00024017,2]
[341637871,1731053250185,-6228.04,0.00024639,2]
[341637872,1731053250206,-800.0,0.0002496,2]
[341637873,1731053250229,-556.0,0.00024979,2]
[341637874,1731053250250,-3051.43,0.00025032,2]
[341637875,1731053250270,-299.99,0.00025032,7]
[341637876,1731053250294,-4500.74518337,0.00025034,2]
[341637877,1731053286502,245.21586623,0.00018123,2]
[341637878,1731053290338,160.52,0.00020094,2]
[341637879,1731053354329,-1727.29481663,0.00025034,2]
[341637880,1731053354350,-250.0,0.00025058,2]
[341637881,1731053354371,-200.0,0.0002507,2]
[341637882,1731053354394,-693.71,0.0002507,2]
[341637883,1731053402760,200.0,0.00023,2]
[341637895,1731053431841,-200.0,0.00025153,2]
[341637896,1731053431854,-172.59,0.00025177,30]
[341637897,1731053431865,-11014.57,0.00025214,2]
[341637898,1731053431876,-169.95,0.00025223,2]
[341637899,1731053431887,-333.04,0.00025234,2]
[341637900,1731053431897,-250.0,0.00025236,2]
[341637901,1731053431908,-361.85,0.00025338,120]
[341637902,1731053431918,-200.0,0.00025398,2]
[341637903,1731053431928,-368.66,0.00025425,2]
[341637904,1731053431938,-6228.04,0.0002543,2]
[341637905,1731053431948,-163.8,0.00025778,2]
[341637906,1731053431959,-6228.04,0.00025826,2]
[341637907,1731053431969,-762.09,0.00026055,2]
[341637908,1731053431979,-762.09,0.00026055,2]
[341637909,1731053431989,-762.09,0.00026055,2]
[341637910,1731053432000,-427.75,0.00026055,2]
[341637911,1731053432010,-762.09,0.00026055,2]
[341637912,1731053432020,-427.75,0.00026055,2]
[341637913,1731053432031,-427.75,0.00026055,2]
[341637914,1731053432041,-762.09,0.00026055,2]
[341637915,1731053432051,-762.09,0.00026055,2]
[341637916,1731053432061,-427.75,0.00026055,2]
[341637917,1731053432072,-762.09,0.00026055,2]
[341637918,1731053432082,-762.09,0.00026055,2]
[341637919,1731053432093,-427.75,0.00026055,2]
[341637920,1731053432107,-762.09,0.00026055,2]
[341637921,1731053432117,-427.75,0.00026055,2]
[341637922,1731053432127,-762.09,0.00026055,2]
[341637923,1731053432137,-762.09,0.00026055,2]
[341637924,1731053432147,-427.75,0.00026055,2]
[341637925,1731053432157,-427.75,0.00026055,2]
[341637926,1731053432168,-762.09,0.00026055,2]
[341637927,1731053432178,-762.09,0.00026055,2]
[341637928,1731053432188,-427.75,0.00026055,2]
[341637929,1731053432199,-427.75,0.00026055,2]
[341637930,1731053432208,-762.09,0.00026055,2]
[341637932,1731053432219,-762.09,0.00026055,2]
[341637934,1731053432229,-427.75,0.00026055,2]
[341637936,1731053432239,-762.09,0.00026055,2]
[341637938,1731053432249,-427.75,0.00026055,2]
[341637940,1731053432260,-762.09,0.00026055,2]
[341637942,1731053432270,-427.75,0.00026055,2]
[341637944,1731053432280,-762.09,0.00026055,2]
[341637946,1731053432290,-427.75,0.00026055,2]
[341637948,1731053432300,-427.75,0.00026055,2]
[341637950,1731053432310,-762.09,0.00026055,2]
[341637953,1731053432320,-427.75,0.00026055,2]
[341637956,1731053432330,-762.09,0.00026055,2]
[341637958,1731053432340,-348.19,0.00026055,2]
[341637960,1731053432352,-427.75,0.00026055,2]
[341637962,1731053432362,-427.75,0.00026055,2]
[341637964,1731053432373,-427.75,0.00026055,2]
[341637966,1731053432383,-800.0,0.000261,9]
[341637968,1731053432394,-160.24342672,0.00026143,2]
[341637970,1731053432404,-1881.26,0.00026144,2]
[341637973,1731053432414,-500.0,0.0002615,2]
[341637975,1731053432424,-156.44,0.00026192,2]
[341637977,1731053432435,-966.04,0.00026192,2]
[341637979,1731053432445,-150.0,0.00026192,2]
[341637981,1731053432456,-150.0,0.00026192,2]
[341637983,1731053432467,-150.0,0.00026192,2]
[341637985,1731053432478,-253.73,0.00026192,2]
[341637988,1731053432494,-366.73,0.00026192,2]
[341637990,1731053432504,-362.0,0.00026192,2]
[341637992,1731053432515,-966.04,0.00026192,2]
[341637994,1731053432524,-150.0,0.00026192,2]
[341637996,1731053432535,-150.0,0.00026192,2]
[341637998,1731053432545,-150.0,0.00026192,2]
[341638000,1731053432555,-150.0,0.00026192,2]
[341638002,1731053432566,-150.0,0.00026192,2]
[341638004,1731053432576,-150.0,0.00026192,2]
[341638006,1731053432586,-150.0,0.00026192,2]
[341638008,1731053432596,-150.0,0.00026192,2]
[341638010,1731053432607,-150.0,0.00026192,2]
[341638011,1731053432617,-362.0,0.00026192,2]
[341638012,1731053432627,-966.04,0.00026192,2]
[341638013,1731053432638,-150.0,0.00026192,2]
[341638014,1731053432648,-150.0,0.00026192,2]
[341638015,1731053432658,-362.0,0.00026192,2]
[341638016,1731053432668,-966.04,0.00026192,2]
[341638017,1731053432678,-150.0,0.00026192,2]
[341638018,1731053432688,-150.0,0.00026192,2]
[341638019,1731053432698,-150.0,0.00026192,2]
[341638020,1731053432708,-150.0,0.00026192,2]
[341638022,1731053432718,-966.04,0.00026192,2]
[341638024,1731053432729,-150.0,0.00026192,2]
[341638026,1731053432739,-150.0,0.00026192,2]
[341638028,1731053432749,-150.0,0.00026192,2]
[341638031,1731053432760,-362.0,0.00026192,2]
[341638033,1731053432771,-150.0,0.00026192,2]
[341638034,1731053432781,-966.04,0.00026192,2]
[341638035,1731053432791,-362.0,0.00026192,2]
[341638036,1731053432801,-305.94,0.00026192,2]
[341638037,1731053432812,-150.0,0.00026192,2]
[341638038,1731053432822,-300.0,0.00026192,2]
[341638039,1731053432833,-150.0,0.00026192,2]
[341638040,1731053432844,-150.0,0.00026192,2]
[341638041,1731053432856,-150.0,0.00026192,2]
[341638042,1731053432866,-966.04,0.00026192,2]
[341638043,1731053432876,-362.0,0.00026192,2]
[341638044,1731053432886,-233.18,0.00026192,2]
[341638045,1731053432897,-150.0,0.00026192,2]
[341638046,1731053432907,-362.0,0.00026192,2]
[341638047,1731053432917,-150.0,0.00026192,2]
[341638048,1731053432927,-150.0,0.00026192,2]
[341638049,1731053432937,-150.0,0.00026192,2]
[341638050,1731053432947,-150.0,0.00026192,2]
[341638051,1731053432957,-150.0,0.00026192,2]
[341638052,1731053432967,-150.0,0.00026192,2]
[341638053,1731053432976,-150.0,0.00026192,2]
[341638054,1731053432986,-150.0,0.00026192,2]
[341638055,1731053432996,-1600.0,0.000262,9]
[341638056,1731053433006,-6228.04,0.00026222,2]
[341638057,1731053433016,-2500.0,0.000263,9]
[341638058,1731053433026,-3300.0,0.000264,9]
[341638059,1731053433037,-1370.25463524,0.000265,2]
[341638060,1731053433047,-4200.0,0.000265,9]
[341638061,1731053433057,-800.0,0.000266,9]
[341638062,1731053433068,-341.86292679,0.000266,2]
[341638063,1731053433078,-6228.04,0.00026618,2]
[341638064,1731053433088,-393.78014567,0.00026641,2]
[341638065,1731053433099,-2000.0,0.0002668,2]
[341638066,1731053433109,-1692.502,0.000267,2]
[341638067,1731053433120,-800.0,0.000267,9]
[341638068,1731053433130,-1016.0335,0.000267,2]
[341638069,1731053433140,-159.12071212,0.000267,2]
[341638070,1731053433151,-13226.873,0.000267,2]
[341638071,1731053433162,-341.86292679,0.0002675,2]
[341638072,1731053433172,-500.0,0.00026773,2]
[341638073,1731053433183,-500.0,0.00026773,2]
[341638074,1731053433192,-500.0,0.00026799,2]
[341638075,1731053433203,-500.0,0.00026799,2]
[341638076,1731053433213,-592.72621116,0.00026799,2]
[341638077,1731053433223,-500.0,0.00026799,2]
[341638078,1731053433235,-500.0,0.00026799,2]
[341638079,1731053433245,-13187.8906362,0.000268,2]
[341638080,1731053433259,-10732.21739669,0.000268,2]
[341638081,1731053433349,-759.99,0.000268,2]
[341638082,1731053433362,-10543.47157189,0.000268,2]
[341638083,1731053433408,-735.05928,0.000268,2]
[341638084,1731053433421,-64041.37111522,0.000268,2]
[341638085,1731053433432,-663.5766,0.000268,2]
[341638086,1731053433443,-136900.7827,0.000268,2]
[341638087,1731053433453,-800.0,0.000268,9]
[341638088,1731053433462,-159.12071212,0.00026807,2]
[341638089,1731053433472,-341.86292679,0.00026899,2]
[341638090,1731053433482,-698.42,0.000269,2]
[341638091,1731053433495,-335.9469,0.000269,2]
[341638092,1731053433504,-1123.91904584,0.000269,2]
[341638093,1731053433522,-657.4833942,0.000269,2]
[341638094,1731053433533,-1794.848539,0.000269,2]
[341638095,1731053433546,-2223.74902096,0.000269,2]
[341638096,1731053433555,-214.6564,0.000269,2]
[341638097,1731053433565,-800.0,0.000269,9]
[341638098,1731053433574,-560.64457904,0.000269,2]
[341638114,1731053437885,-251.09834332,0.0002615,2]
[341638115,1731053437894,-34439.35542096,0.000269,2]
[341638116,1731053437903,-320.82681816,0.00026911,2]
[341638117,1731053437913,-320.82681816,0.00026913,2]
[341638118,1731053437922,-181.99734622,0.00026914,2]
[341638119,1731053437932,-159.12071212,0.00026914,2]
[341638120,1731053437941,-320.82681816,0.00026914,2]
[341638121,1731053437951,-150.110806,0.00026918,3]
[341638122,1731053437961,-150.110806,0.00026928,3]
[341638123,1731053437971,-200.0,0.00026933,2]
[341638124,1731053437980,-17521.15549803,0.00026935,2]
[341638125,1731053437990,-1523.14640683,0.00026937,2]
[341638126,1731053438001,-15998.0090912,0.00026937,2]
[341638127,1731053438010,-150.110806,0.00026938,3]
[341638128,1731053438019,-17521.15549803,0.00026943,2]
[341638129,1731053438028,-150.110806,0.00026948,3]
[341638130,1731053438037,-200.0,0.00026948,2]
[341638131,1731053438047,-131.32444749,0.00026948,2]
[341638132,1731053438058,-13848.21611554,0.00026948,2]
[341638133,1731053438070,-3541.614935,0.00026948,2]
[341638134,1731053438079,-1857.1712475,0.00026949,2]
[341638135,1731053438090,-142.8287525,0.00026949,2]
[341638136,1731053438100,-200.0,0.00026949,2]
[341638137,1731053438110,-85.93389908,0.00026949,2]
[341638138,1731053438121,-114.06610092,0.00026949,2]
[341638139,1731053438131,-7517.53868544,0.00026949,2]
[341638140,1731053438180,-2385.47819203,0.00026949,2]
[341638141,1731053438191,-1301.15361802,0.00026949,2]
[341638142,1731053438202,-749.86877271,0.00026949,2]
[341638143,1731053438214,-6889.10128633,0.00026949,2]
[341638144,1731053438225,-2201.52,0.00026949,2]
[341638145,1731053438236,-32819.96161631,0.00026949,2]
[341638146,1731053438247,-2778.20639833,0.00026949,2]
[341638147,1731053438262,-2196.0,0.00026949,2]
[341638148,1731053438318,-131457.00705488,0.00026949,2]
[341638149,1731053438327,-19579.54251297,0.00026953,2]
[341638150,1731053438336,-19579.54251297,0.00026954,2]
[341638151,1731053438346,-563654.95495698,0.00026955,2]
[341638152,1731053438356,-19579.54251297,0.0002696,2]
[341638153,1731053438365,-11021.25629474,0.0002696,2]
[341638462,1731053441623,-467.33676819,0.000267,2]
[341638464,1731053441633,-6499.89920329,0.0002696,2]
[341638466,1731053441643,-17521.15549803,0.00026962,2]
[341638468,1731053441652,-56081.35879889,0.00026963,2]
[341638471,1731053441663,-2270.0,0.00026963,2]
[341638482,1731053441838,-400.07483383,0.00026963,2]
[341638483,1731053441849,-428.79321821,0.00026963,2]
[341638485,1731053441862,-4555.12487777,0.00026963,2]
[341638487,1731053441875,-1346.25405881,0.00026963,2]
[341638489,1731053441886,-528.55,0.00026963,2]
[341638491,1731053441896,-5562.5,0.00026963,2]
[341638494,1731053441907,-275.7755006,0.00026963,2]
[341638496,1731053441918,-943.04870553,0.00026963,2]
[341638500,1731053441950,-6301.9999045,0.00026963,2]
[341638605,1731053442914,-11013.0744,0.00026963,2]